[Event "Late-Titled-Tuesday-Blitz-June-18-2024"]
[Site "Chess.com"]
[Date "2024.06.18"]
[Round "1"]
[White "reevecanada"]
[Black "LeonardoL2005"]
[Result "1-0"]
[WhiteElo "2609"]
[BlackElo "2235"]
[TimeControl "180+1"]
[EndTime "14:06:51 PDT"]
[Termination "reevecanada won by resignation"]

1. Nf3 {[%clk 0:02:45.2]} 1... Nf6 {[%clk 0:02:55.4]} 2. b3 {[%clk 0:02:43.7]}
2... g6 {[%clk 0:02:56]} 3. Bb2 {[%clk 0:02:43.7]} 3... Bg7 {[%clk 0:02:56.6]}
4. e4 {[%clk 0:02:44.1]} 4... d6 {[%clk 0:02:55]} 5. Qe2 {[%clk 0:02:44.6]} 5...
O-O {[%clk 0:02:55.1]} 6. d4 {[%clk 0:02:45.2]} 6... Nc6 {[%clk 0:02:54.8]} 7.
Nbd2 {[%clk 0:02:45.6]} 7... Bg4 {[%clk 0:02:55]} 8. O-O-O {[%clk 0:02:45.3]}
8... e5 {[%clk 0:02:54.3]} 9. d5 {[%clk 0:02:44.5]} 9... Nd4 {[%clk 0:02:46.4]}
10. Qe3 {[%clk 0:02:44.2]} 10... Nxf3 {[%clk 0:02:42.7]} 11. gxf3 {[%clk
0:02:44]} 11... Bd7 {[%clk 0:02:40.9]} 12. f4 {[%clk 0:02:44.2]} 12... Nh5
{[%clk 0:02:38.6]} 13. fxe5 {[%clk 0:02:39.5]} 13... dxe5 {[%clk 0:02:39.5]} 14.
Nc4 {[%clk 0:02:39]} 14... Re8 {[%clk 0:02:38.2]} 15. Be2 {[%clk 0:02:37.9]}
15... Nf4 {[%clk 0:02:36.7]} 16. Kb1 {[%clk 0:02:38.3]} 16... Bb5 {[%clk
0:02:33.4]} 17. a4 {[%clk 0:02:34.1]} 17... Bxc4 {[%clk 0:02:33.3]} 18. Bxc4
{[%clk 0:02:33.8]} 18... Qd6 {[%clk 0:02:30.3]} 19. h4 {[%clk 0:02:33]} 19... h5
{[%clk 0:02:29.4]} 20. Bb5 {[%clk 0:02:30.5]} 20... Red8 {[%clk 0:02:27.6]} 21.
c4 {[%clk 0:02:29.6]} 21... Bf8 {[%clk 0:02:22.9]} 22. Rhg1 {[%clk 0:02:14.5]}
22... a6 {[%clk 0:02:20.7]} 23. c5 {[%clk 0:02:09.6]} 23... Qxc5 {[%clk
0:02:19.6]} 24. Qxc5 {[%clk 0:02:09.8]} 24... Bxc5 {[%clk 0:02:20.4]} 25. Bxe5
{[%clk 0:02:09.8]} 25... Nh3 {[%clk 0:02:12]} 26. Bc4 {[%clk 0:02:08.9]} 26...
Nxg1 {[%clk 0:02:09.1]} 27. Rxg1 {[%clk 0:02:09.8]} 27... Bd6 {[%clk 0:02:00.4]}
28. Bf6 {[%clk 0:02:03.3]} 28... Re8 {[%clk 0:02:00.1]} 29. Re1 {[%clk
0:02:02.1]} 29... Be7 {[%clk 0:01:57.2]} 30. Bd4 {[%clk 0:01:59.5]} 30... Bxh4
{[%clk 0:01:57.1]} 31. e5 {[%clk 0:01:59.6]} 31... Rad8 {[%clk 0:01:54]} 32. Rg1
{[%clk 0:01:58.3]} 32... Re7 {[%clk 0:01:45.7]} 33. d6 {[%clk 0:00:55.1]} 33...
cxd6 {[%clk 0:01:44.9]} 34. Rxg6+ {[%clk 0:00:54.8]} 34... Kh7 {[%clk
0:01:44.7]} 35. Rxd6 {[%clk 0:00:54.8]} 35... Rxd6 {[%clk 0:01:43.3]} 36. exd6
{[%clk 0:00:55.7]} 36... Rd7 {[%clk 0:01:42.4]} 37. Bd3+ {[%clk 0:00:55]} 37...
Kh6 {[%clk 0:01:34.4]} 38. Be5 {[%clk 0:00:48.1]} 38... Kg5 {[%clk 0:01:29.9]}
39. f4+ {[%clk 0:00:47.5]} 39... Kg4 {[%clk 0:01:29.5]} 40. Be2+ {[%clk
0:00:47.2]} 40... Kf5 {[%clk 0:01:29.1]} 41. Bd3+ {[%clk 0:00:46.6]} 41... Ke6
{[%clk 0:01:29]} 42. Bc4+ {[%clk 0:00:46.1]} 42... Kf5 {[%clk 0:01:29]} 43. Bd3+
{[%clk 0:00:46]} 43... Kg4 {[%clk 0:01:29.6]} 44. Be2+ {[%clk 0:00:46.1]} 44...
Kg3 {[%clk 0:01:27]} 45. f5+ {[%clk 0:00:42]} 45... Kf2 {[%clk 0:01:26.6]} 46.
Bxh5 {[%clk 0:00:40.8]} 46... Bd8 {[%clk 0:01:23.8]} 47. f6 {[%clk 0:00:39.8]}
47... b5 {[%clk 0:01:21.6]} 48. Bg4 {[%clk 0:00:38.5]} 48... Rb7 {[%clk
0:01:20.9]} 49. Ka2 {[%clk 0:00:36]} 49... Ke3 {[%clk 0:01:20.2]} 50. Bc8 {[%clk
0:00:34.5]} 50... Rb8 {[%clk 0:01:19]} 51. d7 {[%clk 0:00:34.4]} 51... Rb6
{[%clk 0:01:19.6]} 52. Bb2 {[%clk 0:00:22.5]} 52... b4 {[%clk 0:01:16.5]} 53. a5
{[%clk 0:00:22]} 53... Rb5 {[%clk 0:01:15.6]} 54. Kb1 {[%clk 0:00:19.9]} 54...
Rxa5 {[%clk 0:01:16]} 55. Bc1+ {[%clk 0:00:20.4]} 55... Kd3 {[%clk 0:01:15.3]}
56. Bb2 {[%clk 0:00:18.4]} 56... Rf5 {[%clk 0:01:13.8]} 57. Bxa6+ {[%clk
0:00:17.7]} 57... Kd2 {[%clk 0:01:11.1]} 58. Bc4 {[%clk 0:00:17.5]} 58... Rf1+
{[%clk 0:01:10.7]} 59. Bxf1 {[%clk 0:00:16.7]} 59... Ke3 {[%clk 0:01:10.3]} 60.
Bc4 {[%clk 0:00:16.8]} 60... Kf4 {[%clk 0:01:11.2]} 61. Bxf7 {[%clk 0:00:17.1]}
61... Kf5 {[%clk 0:01:10.8]} 62. Bc4 {[%clk 0:00:17.7]} 1-0

[Event "Late-Titled-Tuesday-Blitz-June-18-2024"]
[Site "Chess.com"]
[Date "2024.06.18"]
[Round "1"]
[White "PNEPaul"]
[Black "malakismayil"]
[Result "0-1"]
[WhiteElo "1974"]
[BlackElo "2543"]
[TimeControl "180+1"]
[EndTime "14:06:52 PDT"]
[Termination "malakismayil won by resignation"]

1. e4 {[%clk 0:02:55.8]} 1... e5 {[%clk 0:02:55.7]} 2. Nf3 {[%clk 0:02:55.4]}
2... Nc6 {[%clk 0:02:55.2]} 3. Bc4 {[%clk 0:02:54.9]} 3... Bc5 {[%clk
0:02:54.2]} 4. b4 {[%clk 0:02:54.6]} 4... Bxb4 {[%clk 0:02:53.6]} 5. c3 {[%clk
0:02:54.9]} 5... Bd6 {[%clk 0:02:52.4]} 6. d4 {[%clk 0:02:53.8]} 6... Nf6 {[%clk
0:02:52.3]} 7. Bg5 {[%clk 0:02:52.9]} 7... h6 {[%clk 0:02:51.6]} 8. Bh4 {[%clk
0:02:53]} 8... g5 {[%clk 0:02:47.5]} 9. Nxg5 {[%clk 0:02:53]} 9... hxg5 {[%clk
0:02:46.9]} 10. Bxg5 {[%clk 0:02:53.2]} 10... Rg8 {[%clk 0:02:39.9]} 11. h4
{[%clk 0:02:52.5]} 11... Be7 {[%clk 0:02:27.8]} 12. f4 {[%clk 0:02:29.2]} 12...
exd4 {[%clk 0:02:15.5]} 13. e5 {[%clk 0:02:26.9]} 13... Ne4 {[%clk 0:02:03.8]}
14. Bxf7+ {[%clk 0:02:09.8]} 14... Kxf7 {[%clk 0:02:00.3]} 15. Qh5+ {[%clk
0:02:08.8]} 15... Ke6 {[%clk 0:01:52.3]} 16. Qg4+ {[%clk 0:01:28.3]} 16... Kd5
{[%clk 0:01:46.7]} 17. c4+ {[%clk 0:01:26.7]} 17... Kc5 {[%clk 0:01:43.4]} 18.
Qf3 {[%clk 0:01:05.5]} 18... a6 {[%clk 0:01:16.6]} 19. Qxe4 {[%clk 0:01:00.1]}
19... Kb6 {[%clk 0:01:14.2]} 20. Nd2 {[%clk 0:00:55.5]} 20... Ka7 {[%clk
0:01:11.8]} 21. Nb3 {[%clk 0:00:52]} 21... Bxg5 {[%clk 0:00:55.6]} 22. hxg5
{[%clk 0:00:50.9]} 22... Qf8 {[%clk 0:00:56.1]} 23. O-O {[%clk 0:00:35.2]} 23...
b6 {[%clk 0:00:40.3]} 24. Rad1 {[%clk 0:00:21]} 24... Bb7 {[%clk 0:00:38.8]} 25.
Qd3 {[%clk 0:00:20.3]} 25... Re8 {[%clk 0:00:30.5]} 26. Nxd4 {[%clk 0:00:17.3]}
26... Qc5 {[%clk 0:00:30.3]} 27. Rf2 {[%clk 0:00:15.8]} 27... d6 {[%clk
0:00:26.4]} 28. Nxc6+ {[%clk 0:00:13.1]} 28... Qxc6 {[%clk 0:00:27.3]} 29. exd6
{[%clk 0:00:11.7]} 29... cxd6 {[%clk 0:00:28.2]} 30. Qxd6 {[%clk 0:00:11.5]}
30... Re1+ {[%clk 0:00:27.9]} 31. Rxe1 {[%clk 0:00:08.4]} 31... Qxd6 {[%clk
0:00:27.5]} 32. Rfe2 {[%clk 0:00:02.7]} 32... Qxf4 {[%clk 0:00:25.4]} 0-1

[Event "Late-Titled-Tuesday-Blitz-June-18-2024"]
[Site "Chess.com"]
[Date "2024.06.18"]
[Round "1"]
[White "rdarruda"]
[Black "JEHUBNER"]
[Result "1-0"]
[WhiteElo "2562"]
[BlackElo "2102"]
[TimeControl "180+1"]
[EndTime "14:06:54 PDT"]
[Termination "rdarruda won by resignation"]

1. Nf3 {[%clk 0:02:59.6]} 1... c6 {[%clk 0:02:51.8]} 2. d4 {[%clk 0:02:58.7]}
2... d5 {[%clk 0:02:43.4]} 3. Bf4 {[%clk 0:02:55.8]} 3... Nf6 {[%clk 0:02:41.5]}
4. Nbd2 {[%clk 0:02:54]} 4... Nbd7 {[%clk 0:01:49.4]} 5. e3 {[%clk 0:02:52.8]}
5... e6 {[%clk 0:01:49.3]} 6. Bd3 {[%clk 0:02:51.5]} 6... Be7 {[%clk 0:01:49.9]}
7. O-O {[%clk 0:02:50.5]} 7... h6 {[%clk 0:01:50.4]} 8. e4 {[%clk 0:02:48.3]}
8... dxe4 {[%clk 0:01:50.1]} 9. Nxe4 {[%clk 0:02:47.5]} 9... Nxe4 {[%clk
0:01:50.7]} 10. Bxe4 {[%clk 0:02:48.1]} 10... Nf6 {[%clk 0:01:51.6]} 11. Bd3
{[%clk 0:02:46.4]} 11... O-O {[%clk 0:01:51.8]} 12. c3 {[%clk 0:02:41.4]} 12...
Nd5 {[%clk 0:01:52]} 13. Bg3 {[%clk 0:02:40.7]} 13... Nf6 {[%clk 0:01:47.9]} 14.
Re1 {[%clk 0:02:39]} 14... b6 {[%clk 0:01:48.3]} 15. Qe2 {[%clk 0:02:35.7]}
15... Bb7 {[%clk 0:01:47.9]} 16. Rad1 {[%clk 0:02:36]} 16... Qc8 {[%clk
0:01:40.4]} 17. Ne5 {[%clk 0:02:35.7]} 17... Nd7 {[%clk 0:01:39.4]} 18. Qe4
{[%clk 0:02:14]} 18... f5 {[%clk 0:01:32.2]} 19. Qe3 {[%clk 0:02:07.8]} 19...
Bg5 {[%clk 0:01:25.9]} 20. Bf4 {[%clk 0:02:03.5]} 20... Bxf4 {[%clk 0:01:16.4]}
21. Qxf4 {[%clk 0:02:04.4]} 21... Nxe5 {[%clk 0:01:11]} 22. Rxe5 {[%clk
0:02:05.3]} 22... Rf6 {[%clk 0:01:09.8]} 23. Bc4 {[%clk 0:01:50.2]} 23... Qd7
{[%clk 0:01:07.8]} 24. Rde1 {[%clk 0:01:49.4]} 24... Re8 {[%clk 0:01:08.3]} 25.
Rxf5 {[%clk 0:01:47.7]} 25... Rxf5 {[%clk 0:00:41.7]} 26. Qxf5 {[%clk
0:01:48.6]} 26... Kh8 {[%clk 0:00:42.1]} 27. Rxe6 {[%clk 0:01:46.4]} 27... Bc8
{[%clk 0:00:34.9]} 28. Rxe8+ {[%clk 0:01:44]} 28... Qxe8 {[%clk 0:00:35.8]} 29.
Qb1 {[%clk 0:01:37.1]} 29... b5 {[%clk 0:00:26.5]} 30. Bd3 {[%clk 0:01:34.4]}
30... Qe6 {[%clk 0:00:22.9]} 31. h3 {[%clk 0:01:32.4]} 31... Bb7 {[%clk
0:00:20.8]} 32. a3 {[%clk 0:01:29.2]} 32... Qe7 {[%clk 0:00:20]} 33. Be4 {[%clk
0:01:28.2]} 33... a5 {[%clk 0:00:17.1]} 34. Qc2 {[%clk 0:01:27.5]} 34... b4
{[%clk 0:00:17.1]} 35. axb4 {[%clk 0:01:25.8]} 35... axb4 {[%clk 0:00:17.9]} 36.
c4 {[%clk 0:01:24.3]} 36... c5 {[%clk 0:00:16.5]} 37. Bxb7 {[%clk 0:01:23.1]}
37... Qxb7 {[%clk 0:00:17.1]} 38. dxc5 {[%clk 0:01:18.8]} 38... Qe7 {[%clk
0:00:17.8]} 39. g3 {[%clk 0:01:12.5]} 39... Qe1+ {[%clk 0:00:17.6]} 40. Kg2
{[%clk 0:01:11.9]} 40... Qe5 {[%clk 0:00:14.9]} 41. c6 {[%clk 0:01:10]} 41...
Qd6 {[%clk 0:00:13.5]} 42. Qe4 {[%clk 0:01:09.6]} 42... Qc5 {[%clk 0:00:10.7]}
43. Qd5 {[%clk 0:01:08.8]} 43... Qe7 {[%clk 0:00:09.1]} 44. b3 {[%clk
0:00:59.6]} 44... Kh7 {[%clk 0:00:05.5]} 45. h4 {[%clk 0:00:58.9]} 45... Kh8
{[%clk 0:00:04.8]} 46. h5 {[%clk 0:00:58.6]} 46... Qe8 {[%clk 0:00:03.6]} 47. c7
{[%clk 0:00:55.5]} 1-0

[Event "Late-Titled-Tuesday-Blitz-June-18-2024"]
[Site "Chess.com"]
[Date "2024.06.18"]
[Round "1"]
[White "MarceloPlaya"]
[Black "RealPerangel"]
[Result "0-1"]
[WhiteElo "2416"]
[BlackElo "2751"]
[TimeControl "180+1"]
[EndTime "14:06:59 PDT"]
[Termination "RealPerangel won on time"]

1. e4 {[%clk 0:02:58.6]} 1... d5 {[%clk 0:03:00]} 2. exd5 {[%clk 0:02:55.9]}
2... Qxd5 {[%clk 0:03:00.7]} 3. Nc3 {[%clk 0:02:55]} 3... Qa5 {[%clk 0:03:01.2]}
4. Bc4 {[%clk 0:02:53.5]} 4... Nf6 {[%clk 0:03:01.5]} 5. d4 {[%clk 0:02:51.3]}
5... Bg4 {[%clk 0:02:54.8]} 6. Ne2 {[%clk 0:02:49.3]} 6... Nc6 {[%clk
0:02:54.3]} 7. O-O {[%clk 0:02:45.1]} 7... O-O-O {[%clk 0:02:54.1]} 8. f3 {[%clk
0:02:38.9]} 8... Be6 {[%clk 0:02:45.4]} 9. Bxe6+ {[%clk 0:02:37.3]} 9... fxe6
{[%clk 0:02:46.1]} 10. Qe1 {[%clk 0:02:33]} 10... Nb4 {[%clk 0:02:45.4]} 11. Ne4
{[%clk 0:02:26.4]} 11... Qb6 {[%clk 0:02:39.5]} 12. Qc3 {[%clk 0:02:17]} 12...
e5 {[%clk 0:02:30.4]} 13. a3 {[%clk 0:02:03.4]} 13... Nc6 {[%clk 0:02:17.1]} 14.
Nc5 {[%clk 0:01:36.6]} 14... exd4 {[%clk 0:02:13.9]} 15. Qc4 {[%clk 0:01:34.5]}
15... Rd5 {[%clk 0:01:45.1]} 16. b4 {[%clk 0:01:32.9]} 16... e5 {[%clk
0:01:44.9]} 17. Bg5 {[%clk 0:01:30.2]} 17... Bxc5 {[%clk 0:01:22.4]} 18. Bxf6
{[%clk 0:01:27.9]} 18... d3+ {[%clk 0:01:22.8]} 19. bxc5 {[%clk 0:01:22.2]}
19... Qxc5+ {[%clk 0:01:17.6]} 20. Qxc5 {[%clk 0:01:09.1]} 20... Rxc5 {[%clk
0:01:17.4]} 21. Bxg7 {[%clk 0:00:52.3]} 21... dxe2 {[%clk 0:01:06]} 22. Bxh8
{[%clk 0:00:51.3]} 22... exf1=Q+ {[%clk 0:01:06.1]} 23. Kxf1 {[%clk 0:00:47.9]}
23... Rxc2 {[%clk 0:01:06.2]} 24. h4 {[%clk 0:00:47.7]} 24... Kd7 {[%clk
0:01:04.1]} 25. h5 {[%clk 0:00:46.7]} 25... Ke6 {[%clk 0:00:56.6]} 26. h6 {[%clk
0:00:44.2]} 26... a5 {[%clk 0:00:39.1]} 27. a4 {[%clk 0:00:38.2]} 27... Kf5
{[%clk 0:00:36]} 28. Rd1 {[%clk 0:00:33.3]} 28... Nd4 {[%clk 0:00:33.5]} 29. g3
{[%clk 0:00:18.5]} 29... Nxf3 {[%clk 0:00:24.9]} 30. Rd7 {[%clk 0:00:17]} 30...
e4 {[%clk 0:00:25.2]} 31. Rxh7 {[%clk 0:00:14.1]} 31... e3 {[%clk 0:00:25.6]}
32. Rf7+ {[%clk 0:00:13.7]} 32... Kg4 {[%clk 0:00:25]} 33. Rf4+ {[%clk
0:00:13.1]} 33... Kxg3 {[%clk 0:00:24.8]} 0-1

[Event "Late-Titled-Tuesday-Blitz-June-18-2024"]
[Site "Chess.com"]
[Date "2024.06.18"]
[Round "1"]
[White "MaestroCheck"]
[Black "EvilMorty23"]
[Result "0-1"]
[WhiteElo "2611"]
[BlackElo "2318"]
[TimeControl "180+1"]
[EndTime "14:07:00 PDT"]
[Termination "EvilMorty23 won by checkmate"]

1. e4 {[%clk 0:02:58.7]} 1... e6 {[%clk 0:02:59.8]} 2. d4 {[%clk 0:02:57.3]}
2... d5 {[%clk 0:03:00.7]} 3. Nd2 {[%clk 0:02:56.8]} 3... Nf6 {[%clk 0:03:01]}
4. e5 {[%clk 0:02:56.5]} 4... Nfd7 {[%clk 0:03:01.7]} 5. Bd3 {[%clk 0:02:56.9]}
5... c5 {[%clk 0:03:02.6]} 6. c3 {[%clk 0:02:57.4]} 6... Nc6 {[%clk 0:03:03.3]}
7. Ne2 {[%clk 0:02:56.3]} 7... cxd4 {[%clk 0:03:02.4]} 8. cxd4 {[%clk
0:02:57.2]} 8... f6 {[%clk 0:03:02.8]} 9. exf6 {[%clk 0:02:56.3]} 9... Qxf6
{[%clk 0:03:03.7]} 10. Nf3 {[%clk 0:02:51.9]} 10... h6 {[%clk 0:03:03.3]} 11.
O-O {[%clk 0:02:43.5]} 11... Bd6 {[%clk 0:03:02.7]} 12. Ng3 {[%clk 0:02:39.7]}
12... O-O {[%clk 0:02:56.8]} 13. a3 {[%clk 0:02:32]} 13... Rd8 {[%clk 0:02:52]}
14. Be3 {[%clk 0:02:28.3]} 14... Nf8 {[%clk 0:02:51.8]} 15. Rc1 {[%clk
0:02:23.9]} 15... Bd7 {[%clk 0:02:46.9]} 16. Re1 {[%clk 0:02:14.1]} 16... Be8
{[%clk 0:02:37.6]} 17. b4 {[%clk 0:02:00]} 17... a6 {[%clk 0:02:28.5]} 18. Qd2
{[%clk 0:01:53.6]} 18... Bg6 {[%clk 0:02:22.7]} 19. Be2 {[%clk 0:01:52.4]} 19...
Rac8 {[%clk 0:02:16.2]} 20. Rc3 {[%clk 0:01:46.5]} 20... Ne7 {[%clk 0:02:07.7]}
21. Rec1 {[%clk 0:01:29.6]} 21... Rxc3 {[%clk 0:02:07]} 22. Rxc3 {[%clk
0:01:30.5]} 22... Nf5 {[%clk 0:02:06.5]} 23. b5 {[%clk 0:01:12.2]} 23... Nxe3
{[%clk 0:02:04.2]} 24. fxe3 {[%clk 0:01:05.8]} 24... axb5 {[%clk 0:01:46]} 25.
Bxb5 {[%clk 0:01:04.7]} 25... Nh7 {[%clk 0:01:34.3]} 26. Bd3 {[%clk 0:00:59.5]}
26... Ng5 {[%clk 0:01:30.3]} 27. Bxg6 {[%clk 0:00:43.3]} 27... Nxf3+ {[%clk
0:01:18.8]} 28. gxf3 {[%clk 0:00:43.2]} 28... Qxg6 {[%clk 0:01:19.5]} 29. f4
{[%clk 0:00:43.9]} 29... h5 {[%clk 0:01:06.9]} 30. Qg2 {[%clk 0:00:40.9]} 30...
Ra8 {[%clk 0:01:02.9]} 31. f5 {[%clk 0:00:35.5]} 31... Qg4 {[%clk 0:00:41.4]}
32. fxe6 {[%clk 0:00:30.9]} 32... h4 {[%clk 0:00:41.1]} 33. Nf1 {[%clk
0:00:21.5]} 33... Qxe6 {[%clk 0:00:40.2]} 34. Rb3 {[%clk 0:00:17.5]} 34... h3
{[%clk 0:00:34.7]} 35. Qf3 {[%clk 0:00:17.2]} 35... Rf8 {[%clk 0:00:34.8]} 36.
Qe2 {[%clk 0:00:13]} 36... Qg6+ {[%clk 0:00:32]} 37. Kh1 {[%clk 0:00:13.4]}
37... Qe4+ {[%clk 0:00:29.7]} 38. Kg1 {[%clk 0:00:13.4]} 38... Rf6 {[%clk
0:00:27.2]} 39. Rxb7 {[%clk 0:00:13]} 39... Rg6+ {[%clk 0:00:26.6]} 40. Ng3
{[%clk 0:00:13.1]} 40... Bxg3 {[%clk 0:00:26.4]} 41. hxg3 {[%clk 0:00:13.2]}
41... Rxg3+ {[%clk 0:00:27.3]} 42. Kf1 {[%clk 0:00:13.5]} 42... Qh1+ {[%clk
0:00:27.6]} 43. Kf2 {[%clk 0:00:13.7]} 43... Qg1# {[%clk 0:00:27.4]} 0-1

[Event "Late-Titled-Tuesday-Blitz-June-18-2024"]
[Site "Chess.com"]
[Date "2024.06.18"]
[Round "1"]
[White "CruzWilliam"]
[Black "pouya21"]
[Result "0-1"]
[WhiteElo "2451"]
[BlackElo "2807"]
[TimeControl "180+1"]
[EndTime "14:07:03 PDT"]
[Termination "pouya21 won on time"]

1. d4 {[%clk 0:03:00.9]} 1... Nf6 {[%clk 0:02:59.5]} 2. c4 {[%clk 0:03:00.8]}
2... a6 {[%clk 0:02:56.3]} 3. Nc3 {[%clk 0:03:00]} 3... c5 {[%clk 0:02:56.5]} 4.
d5 {[%clk 0:02:32.6]} 4... b5 {[%clk 0:02:55.9]} 5. cxb5 {[%clk 0:02:24.1]} 5...
axb5 {[%clk 0:02:54.9]} 6. e4 {[%clk 0:02:09.8]} 6... b4 {[%clk 0:02:54.6]} 7.
Nb5 {[%clk 0:02:08.3]} 7... d6 {[%clk 0:02:45.2]} 8. Bf4 {[%clk 0:02:03.3]} 8...
Nbd7 {[%clk 0:02:09.9]} 9. Nf3 {[%clk 0:01:28.5]} 9... Nh5 {[%clk 0:01:24.4]}
10. Be3 {[%clk 0:01:18.1]} 10... g6 {[%clk 0:01:22.3]} 11. Be2 {[%clk
0:01:08.6]} 11... Bg7 {[%clk 0:01:22]} 12. Qd2 {[%clk 0:01:08.2]} 12... Nhf6
{[%clk 0:01:15.6]} 13. Qc2 {[%clk 0:00:58]} 13... Ng4 {[%clk 0:01:13.1]} 14. Bf4
{[%clk 0:00:53.4]} 14... O-O {[%clk 0:01:12.4]} 15. O-O {[%clk 0:00:52.5]} 15...
Ba6 {[%clk 0:01:08.5]} 16. a4 {[%clk 0:00:41.8]} 16... bxa3 {[%clk 0:00:55.7]}
17. Rxa3 {[%clk 0:00:35.8]} 17... Qb6 {[%clk 0:00:43.8]} 18. Rfa1 {[%clk
0:00:27.7]} 18... Bb7 {[%clk 0:00:41.9]} 19. Nd2 {[%clk 0:00:20.8]} 19... Rxa3
{[%clk 0:00:38.5]} 20. Rxa3 {[%clk 0:00:20.1]} 20... Nge5 {[%clk 0:00:37]} 21.
Bg3 {[%clk 0:00:18.7]} 21... c4 {[%clk 0:00:25.1]} 22. Nc3 {[%clk 0:00:12.7]}
22... Rc8 {[%clk 0:00:23]} 23. Ra4 {[%clk 0:00:11.3]} 23... Nc5 {[%clk
0:00:21.5]} 24. Nxc4 {[%clk 0:00:09.9]} 24... Nxc4 {[%clk 0:00:20.2]} 25. Rxc4
{[%clk 0:00:09.5]} 25... Ba6 {[%clk 0:00:20.4]} 26. Na4 {[%clk 0:00:08.7]} 26...
Qa7 {[%clk 0:00:18.2]} 27. Rb4 {[%clk 0:00:03.6]} 27... Bxe2 {[%clk 0:00:18.3]}
28. Nxc5 {[%clk 0:00:01.1]} 28... Rxc5 {[%clk 0:00:15.2]} 0-1

[Event "Late-Titled-Tuesday-Blitz-June-18-2024"]
[Site "Chess.com"]
[Date "2024.06.18"]
[Round "1"]
[White "KHBR4"]
[Black "Tsukasa06"]
[Result "1-0"]
[WhiteElo "2659"]
[BlackElo "2357"]
[TimeControl "180+1"]
[EndTime "14:07:04 PDT"]
[Termination "KHBR4 won on time"]

1. g3 {[%clk 0:02:41.7]} 1... Nf6 {[%clk 0:02:59.2]} 2. Bg2 {[%clk 0:02:41.8]}
2... g6 {[%clk 0:02:59.6]} 3. b3 {[%clk 0:02:38.8]} 3... Bg7 {[%clk 0:02:59.8]}
4. Bb2 {[%clk 0:02:39.3]} 4... O-O {[%clk 0:03:00.4]} 5. Nf3 {[%clk 0:02:38.8]}
5... d5 {[%clk 0:03:00.4]} 6. O-O {[%clk 0:02:38.9]} 6... c5 {[%clk 0:03:00.3]}
7. c4 {[%clk 0:02:35.9]} 7... Nc6 {[%clk 0:02:57.1]} 8. cxd5 {[%clk 0:02:27]}
8... Nxd5 {[%clk 0:02:58]} 9. Bxg7 {[%clk 0:02:21.2]} 9... Kxg7 {[%clk
0:02:58.9]} 10. Qc1 {[%clk 0:02:18.4]} 10... b6 {[%clk 0:02:50.8]} 11. Nc3
{[%clk 0:02:09.3]} 11... Bb7 {[%clk 0:02:44.5]} 12. d3 {[%clk 0:02:03.8]} 12...
Rc8 {[%clk 0:02:28.8]} 13. a3 {[%clk 0:01:55.8]} 13... Qd7 {[%clk 0:02:21.2]}
14. h4 {[%clk 0:01:55.4]} 14... Rfd8 {[%clk 0:02:14.1]} 15. Ne4 {[%clk 0:01:53]}
15... Nd4 {[%clk 0:02:08.9]} 16. Qb2 {[%clk 0:01:51]} 16... Nf6 {[%clk
0:02:03.9]} 17. Nxf6 {[%clk 0:01:45.9]} 17... exf6 {[%clk 0:02:04.8]} 18. Nxd4
{[%clk 0:01:46]} 18... Bxg2 {[%clk 0:01:58.1]} 19. Kxg2 {[%clk 0:01:41.1]} 19...
Qxd4 {[%clk 0:01:26.9]} 20. Rab1 {[%clk 0:01:38]} 20... Rd6 {[%clk 0:01:15.7]}
21. Rfc1 {[%clk 0:01:29.7]} 21... Re8 {[%clk 0:01:11.4]} 22. Qxd4 {[%clk
0:01:28.5]} 22... Rxd4 {[%clk 0:01:12.3]} 23. Kf3 {[%clk 0:01:27.7]} 23... Re7
{[%clk 0:01:00.8]} 24. Rc4 {[%clk 0:01:23.1]} 24... Red7 {[%clk 0:00:52.7]} 25.
Rbc1 {[%clk 0:01:19.8]} 25... f5 {[%clk 0:00:50.2]} 26. Rxd4 {[%clk 0:01:13.5]}
26... Rxd4 {[%clk 0:00:48]} 27. Rc4 {[%clk 0:01:14.4]} 27... Kf6 {[%clk
0:00:43.7]} 28. Rxd4 {[%clk 0:01:03.5]} 28... cxd4 {[%clk 0:00:42.9]} 29. e3
{[%clk 0:00:57.8]} 29... Ke5 {[%clk 0:00:29.9]} 30. Ke2 {[%clk 0:00:56.7]} 30...
h5 {[%clk 0:00:12.5]} 31. f4+ {[%clk 0:00:50]} 31... Kd5 {[%clk 0:00:10.2]} 32.
Kf3 {[%clk 0:00:50.5]} 32... dxe3 {[%clk 0:00:09.9]} 33. Kxe3 {[%clk 0:00:50.8]}
33... a5 {[%clk 0:00:09.9]} 34. a4 {[%clk 0:00:46.8]} 34... Kc6 {[%clk
0:00:03.8]} 35. d4 {[%clk 0:00:47.2]} 35... Kd5 {[%clk 0:00:03.7]} 36. Kd3
{[%clk 0:00:47.7]} 36... Kd6 {[%clk 0:00:04.1]} 37. Kc4 {[%clk 0:00:48]} 37...
Kc6 {[%clk 0:00:04.5]} 38. b4 {[%clk 0:00:40.5]} 38... axb4 {[%clk 0:00:04.4]}
39. Kxb4 {[%clk 0:00:40.8]} 1-0